[Event "Titled Tuesday Blitz July 18 Late 2023"]
[White "SoyuzTM4"]
[Black "Marosi, Levente"]
[BlackFideId "747181"]
[WhiteElo "2225"]
[BlackElo "2531"]
[Result "0-1"]
[Round "1"]
[TimeControl "180+2"]
[Date "2023.07.18"]
[WhiteClock "0:00:09"]
[BlackClock "0:00:25"]
[Board "171"]

1. e4 {[%clk 0:02:56]}  c6 {[%clk 0:02:51]} 2. c4 {[%clk 0:02:53]}  d5 {[%clk 0:02:52]} 3. exd5 {[%clk 0:02:52]}  cxd5 {[%clk 0:02:53]} 4. cxd5 {[%clk 0:02:52]}  Nf6 {[%clk 0:02:53]} 5. Bb5+ {[%clk 0:02:51]}  Nbd7 {[%clk 0:02:53]} 6. Bc4 {[%clk 0:02:50]}  a6 {[%clk 0:02:52]} 7. Nc3 {[%clk 0:02:50]}  b5 {[%clk 0:02:53]} 8. Bb3 {[%clk 0:02:49]}  Nb6 {[%clk 0:02:53]} 9. Nf3 {[%clk 0:02:45]}  Bb7 {[%clk 0:02:53]} 10. d4 {[%clk 0:02:41]}  Nbxd5 {[%clk 0:02:53]} 11. O-O {[%clk 0:02:40]}  e6 {[%clk 0:02:54]} 12. Bg5 {[%clk 0:02:37]}  Be7 {[%clk 0:02:54]} 13. Re1 {[%clk 0:02:37]}  O-O {[%clk 0:02:53]} 14. Qe2 {[%clk 0:02:29]}  Rc8 {[%clk 0:02:52]} 15. Rad1 {[%clk 0:02:28]}  Nxc3 {[%clk 0:02:30]} 16. bxc3 {[%clk 0:02:28]}  Rxc3 {[%clk 0:02:14]} 17. Ne5 {[%clk 0:02:24]}  Bd5 {[%clk 0:02:08]} 18. Bc2 {[%clk 0:02:05]}  Qc7 {[%clk 0:01:43]} 19. Bb1 {[%clk 0:02:02]}  h6 {[%clk 0:01:40]} 20. Bh4 {[%clk 0:01:56]}  Rc8 {[%clk 0:01:38]} 21. Bg3 {[%clk 0:01:47]}  Qb7 {[%clk 0:01:36]} 22. f4 {[%clk 0:01:40]}  Ba3 {[%clk 0:00:53]} 23. f5 {[%clk 0:01:35]}  Rc1 {[%clk 0:00:43]} 24. fxe6 {[%clk 0:01:29]}  Bxe6 {[%clk 0:00:44]} 25. Bh4 {[%clk 0:01:21]}  Rxd1 {[%clk 0:00:39]} 26. Rxd1 {[%clk 0:01:18]}  Be7 {[%clk 0:00:38]} 27. Ng6 {[%clk 0:01:11]}  Bd8 {[%clk 0:00:29]} 28. Bxf6 {[%clk 0:00:46]}  Bxf6 {[%clk 0:00:30]} 29. Nf4 {[%clk 0:00:46]}  Bd5 {[%clk 0:00:23]} 30. Qd3 {[%clk 0:00:40]}  g6 {[%clk 0:00:23]} 31. Nxg6 {[%clk 0:00:38]}  fxg6 {[%clk 0:00:23]} 32. Qxg6+ {[%clk 0:00:36]}  Qg7 {[%clk 0:00:24]} 33. Qxg7+ {[%clk 0:00:20]}  Kxg7 {[%clk 0:00:25]} 34. Kf2 {[%clk 0:00:09]}  Rc4 {[%clk 0:00:25]} 0-1


[Site "https://www.chess.com"]

[Event "Titled Tuesday Blitz July 18 Late 2023"]
[White "Rangel, Daniel"]
[Black "Vila Dupla, Aurelio"]
[WhiteFideId "2124475"]
[BlackFideId "2203383"]
[WhiteElo "2530"]
[BlackElo "2216"]
[Result "1-0"]
[Round "1"]
[TimeControl "180+2"]
[Date "2023.07.18"]
[WhiteClock "0:00:06"]
[BlackClock "0:00:00"]
[Board "172"]

1. c4 {[%clk 0:02:56]}  Nf6 {[%clk 0:02:56]} 2. g3 {[%clk 0:02:57]}  c6 {[%clk 0:02:49]} 3. Bg2 {[%clk 0:02:58]}  d5 {[%clk 0:02:49]} 4. Nf3 {[%clk 0:02:54]}  g6 {[%clk 0:02:48]} 5. b3 {[%clk 0:02:52]}  Bg7 {[%clk 0:02:43]} 6. O-O {[%clk 0:02:51]}  Ne4 {[%clk 0:02:39]} 7. d4 {[%clk 0:02:51]}  O-O {[%clk 0:02:38]} 8. Bf4 {[%clk 0:02:36]}  Bf5 {[%clk 0:02:24]} 9. Be5 {[%clk 0:02:27]}  Bh6 {[%clk 0:02:15]} 10. Nh4 {[%clk 0:02:18]}  Be6 {[%clk 0:02:12]} 11. Bxb8 {[%clk 0:01:42]}  Rxb8 {[%clk 0:02:09]} 12. c5 {[%clk 0:01:31]}  Qd7 {[%clk 0:02:01]} 13. f4 {[%clk 0:01:28]}  Bh3 {[%clk 0:01:48]} 14. Nd2 {[%clk 0:01:22]}  Bxg2 {[%clk 0:01:45]} 15. Kxg2 {[%clk 0:01:23]}  f5 {[%clk 0:01:44]} 16. Nxe4 {[%clk 0:01:19]}  dxe4 {[%clk 0:01:31]} 17. e3 {[%clk 0:01:19]}  Bg7 {[%clk 0:01:30]} 18. Qc2 {[%clk 0:01:18]}  Bf6 {[%clk 0:01:21]} 19. Kh3 {[%clk 0:01:12]}  Bxh4 {[%clk 0:01:18]} 20. gxh4 {[%clk 0:00:56]}  Qd5 {[%clk 0:01:14]} 21. Rg1 {[%clk 0:00:55]}  Kf7 {[%clk 0:01:13]} 22. Rg5 {[%clk 0:00:54]}  h6 {[%clk 0:01:10]} 23. Rg3 {[%clk 0:00:50]}  Rg8 {[%clk 0:01:09]} 24. Rag1 {[%clk 0:00:48]}  h5 {[%clk 0:00:52]} 25. Kg2 {[%clk 0:00:44]}  Rg7 {[%clk 0:00:49]} 26. Kh1 {[%clk 0:00:43]}  Rbg8 {[%clk 0:00:49]} 27. Qd2 {[%clk 0:00:41]}  Qd8 {[%clk 0:00:44]} 28. Rg5 {[%clk 0:00:41]}  Qd7 {[%clk 0:00:37]} 29. Qa5 {[%clk 0:00:39]}  a6 {[%clk 0:00:36]} 30. b4 {[%clk 0:00:39]}  Kf6 {[%clk 0:00:32]} 31. Qa3 {[%clk 0:00:37]}  Qd5 {[%clk 0:00:31]} 32. Qb2 {[%clk 0:00:37]}  Kf7 {[%clk 0:00:28]} 33. a4 {[%clk 0:00:30]}  Qc4 {[%clk 0:00:28]} 34. R5g3 {[%clk 0:00:29]}  Qd3 {[%clk 0:00:26]} 35. Qa2+ {[%clk 0:00:26]}  Kf8 {[%clk 0:00:25]} 36. Qe6 {[%clk 0:00:24]}  Qc2 {[%clk 0:00:19]} 37. Qc8+ {[%clk 0:00:13]}  Kf7 {[%clk 0:00:19]} 38. Qxb7 {[%clk 0:00:13]}  Qxa4 {[%clk 0:00:19]} 39. d5 {[%clk 0:00:14]}  cxd5 {[%clk 0:00:12]} 40. Qxd5+ {[%clk 0:00:14]}  e6 {[%clk 0:00:13]} 41. Qb7+ {[%clk 0:00:11]}  Kf6 {[%clk 0:00:13]} 42. Qb6 {[%clk 0:00:11]}  Rd8 {[%clk 0:00:11]} 43. Qxd8+ {[%clk 0:00:10]}  Kf7 {[%clk 0:00:11]} 44. Qc7+ {[%clk 0:00:06]}  Kg8 {[%clk 0:00:00]} 45. Rxg6 {[%clk 0:00:06]} 1-0


[Site "https://www.chess.com"]

[Event "Titled Tuesday Blitz July 18 Late 2023"]
[White "Zhang, Derek"]
[Black "Ilyuchyk, Yana"]
[WhiteFideId "2087871"]
[BlackFideId "13508407"]
[WhiteElo "2528"]
[BlackElo "2191"]
[Result "1-0"]
[Round "1"]
[TimeControl "180+2"]
[Date "2023.07.18"]
[WhiteClock "0:00:13"]
[BlackClock "0:00:07"]
[Board "174"]

1. Nf3 {[%clk 0:03:00]}  Nf6 {[%clk 0:02:59]} 2. c4 {[%clk 0:03:01]}  g6 {[%clk 0:02:58]} 3. Nc3 {[%clk 0:03:01]}  Bg7 {[%clk 0:02:59]} 4. e4 {[%clk 0:03:02]}  d6 {[%clk 0:02:59]} 5. d4 {[%clk 0:03:02]}  O-O {[%clk 0:02:59]} 6. h3 {[%clk 0:03:03]}  Nbd7 {[%clk 0:02:59]} 7. Be3 {[%clk 0:03:02]}  e5 {[%clk 0:03:00]} 8. d5 {[%clk 0:03:03]}  Nh5 {[%clk 0:02:59]} 9. c5 {[%clk 0:02:58]}  Nxc5 {[%clk 0:02:55]} 10. Bxc5 {[%clk 0:02:56]}  dxc5 {[%clk 0:02:56]} 11. Bc4 {[%clk 0:02:57]}  Nf4 {[%clk 0:02:55]} 12. Rg1 {[%clk 0:02:37]}  Kh8 {[%clk 0:02:54]} 13. Ne2 {[%clk 0:02:36]}  f5 {[%clk 0:02:50]} 14. Nd2 {[%clk 0:02:32]}  fxe4 {[%clk 0:02:42]} 15. Nxe4 {[%clk 0:02:33]}  b6 {[%clk 0:02:40]} 16. Qd2 {[%clk 0:02:26]}  Bf5 {[%clk 0:02:35]} 17. N2g3 {[%clk 0:02:25]}  Qh4 {[%clk 0:02:27]} 18. Nxf5 {[%clk 0:01:39]}  gxf5 {[%clk 0:02:26]} 19. g3 {[%clk 0:01:39]}  Qxh3 {[%clk 0:02:09]} 20. Ng5 {[%clk 0:01:38]}  Qg4 {[%clk 0:02:05]} 21. Rh1 {[%clk 0:00:51]}  Qxg5 {[%clk 0:01:56]} 22. gxf4 {[%clk 0:00:51]}  Qxf4 {[%clk 0:01:52]} 23. Qxf4 {[%clk 0:00:46]}  exf4 {[%clk 0:01:52]} 24. O-O-O {[%clk 0:00:47]}  Rae8 {[%clk 0:01:45]} 25. Rh5 {[%clk 0:00:37]}  Re4 {[%clk 0:01:43]} 26. b3 {[%clk 0:00:36]}  Bd4 {[%clk 0:01:28]} 27. Rdh1 {[%clk 0:00:34]}  Re7 {[%clk 0:01:26]} 28. f3 {[%clk 0:00:28]}  Rg7 {[%clk 0:01:20]} 29. Bd3 {[%clk 0:00:27]}  Rd8 {[%clk 0:01:16]} 30. Rxf5 {[%clk 0:00:24]}  Be3+ {[%clk 0:01:15]} 31. Kc2 {[%clk 0:00:19]}  Rg2+ {[%clk 0:01:13]} 32. Kc3 {[%clk 0:00:19]}  Bd4+ {[%clk 0:00:58]} 33. Kc4 {[%clk 0:00:19]}  a6 {[%clk 0:00:57]} 34. a4 {[%clk 0:00:18]}  Rb8 {[%clk 0:00:55]} 35. d6 {[%clk 0:00:17]}  c6 {[%clk 0:00:52]} 36. Be4 {[%clk 0:00:17]}  b5+ {[%clk 0:00:41]} 37. axb5 {[%clk 0:00:17]}  axb5+ {[%clk 0:00:38]} 38. Kd3 {[%clk 0:00:17]}  Be3 {[%clk 0:00:33]} 39. Rf7 {[%clk 0:00:14]}  Rd2+ {[%clk 0:00:33]} 40. Kc3 {[%clk 0:00:15]}  b4+ {[%clk 0:00:32]} 41. Kc4 {[%clk 0:00:16]}  Rd4+ {[%clk 0:00:28]} 42. Kxc5 {[%clk 0:00:16]}  Rxe4+ {[%clk 0:00:27]} 43. Kxc6 {[%clk 0:00:17]}  Rb6+ {[%clk 0:00:18]} 44. Kc7 {[%clk 0:00:14]}  Re6 {[%clk 0:00:13]} 45. Rfxh7+ {[%clk 0:00:11]}  Kg8 {[%clk 0:00:13]} 46. Rh8+ {[%clk 0:00:12]}  Kg7 {[%clk 0:00:13]} 47. R1h7+ {[%clk 0:00:13]}  Kf6 {[%clk 0:00:13]} 48. Rh6+ {[%clk 0:00:13]}  Ke5 {[%clk 0:00:13]} 49. Rxe6+ {[%clk 0:00:13]}  Kxe6 {[%clk 0:00:13]} 50. d7 {[%clk 0:00:14]}  Rd6 {[%clk 0:00:13]} 51. Re8+ {[%clk 0:00:13]}  Kd5 {[%clk 0:00:13]} 52. d8=Q {[%clk 0:00:13]}  Rxd8 {[%clk 0:00:13]} 53. Rxd8+ {[%clk 0:00:14]}  Ke5 {[%clk 0:00:13]} 54. Kc6 {[%clk 0:00:13]}  Kf5 {[%clk 0:00:11]} 55. Kd5 {[%clk 0:00:13]}  Bd2 {[%clk 0:00:11]} 56. Rf8+ {[%clk 0:00:12]}  Kg5 {[%clk 0:00:11]} 57. Ke4 {[%clk 0:00:12]}  Kh4 {[%clk 0:00:11]} 58. Rxf4+ {[%clk 0:00:11]}  Kh3 {[%clk 0:00:11]} 59. Rf5 {[%clk 0:00:11]}  Kg3 {[%clk 0:00:11]} 60. Rb5 {[%clk 0:00:12]}  Kf2 {[%clk 0:00:10]} 61. f4 {[%clk 0:00:12]}  Kg3 {[%clk 0:00:11]} 62. f5 {[%clk 0:00:13]}  Kg4 {[%clk 0:00:07]} 63. f6 {[%clk 0:00:13]} 1-0


[Site "https://www.chess.com"]

[Event "Titled Tuesday Blitz July 18 Late 2023"]
[White "Novikova, Margarita"]
[Black "Martinez Reyes, Pedro Ramon"]
[WhiteFideId "14109689"]
[BlackFideId "3901807"]
[WhiteElo "2189"]
[BlackElo "2528"]
[Result "0-1"]
[Round "1"]
[TimeControl "180+2"]
[Date "2023.07.18"]
[WhiteClock "0:02:17"]
[BlackClock "0:02:15"]
[Board "175"]

1. e4 {[%clk 0:03:00]}  b6 {[%clk 0:02:58]} 2. d4 {[%clk 0:02:59]}  Bb7 {[%clk 0:02:58]} 3. Nc3 {[%clk 0:02:59]}  e6 {[%clk 0:02:58]} 4. Bd3 {[%clk 0:02:58]}  Nf6 {[%clk 0:02:57]} 5. Nf3 {[%clk 0:02:55]}  d5 {[%clk 0:02:57]} 6. e5 {[%clk 0:02:54]}  Nfd7 {[%clk 0:02:58]} 7. Ne2 {[%clk 0:02:52]}  c5 {[%clk 0:02:58]} 8. c3 {[%clk 0:02:53]}  Nc6 {[%clk 0:02:59]} 9. O-O {[%clk 0:02:52]}  Rc8 {[%clk 0:02:58]} 10. Bg5 {[%clk 0:02:47]}  Qc7 {[%clk 0:02:57]} 11. Rc1 {[%clk 0:02:46]}  h6 {[%clk 0:02:57]} 12. Bh4 {[%clk 0:02:45]}  Be7 {[%clk 0:02:46]} 13. Bxe7 {[%clk 0:02:44]}  Nxe7 {[%clk 0:02:46]} 14. Nd2 {[%clk 0:02:41]}  f5 {[%clk 0:02:17]} 15. exf6 {[%clk 0:02:39]}  Nxf6 {[%clk 0:02:16]} 16. Nf4 {[%clk 0:02:17]}  Qxf4 {[%clk 0:02:15]} 0-1


[Site "https://www.chess.com"]

[Event "Titled Tuesday Blitz July 18 Late 2023"]
[White "ArtemDyachuk"]
[Black "Sailer, Mike"]
[BlackFideId "2012901"]
[WhiteElo "2522"]
[BlackElo "2162"]
[Result "1-0"]
[Round "1"]
[TimeControl "180+2"]
[Date "2023.07.18"]
[WhiteClock "0:00:55"]
[BlackClock "0:00:24"]
[Board "180"]

1. e4 {[%clk 0:03:00]}  d5 {[%clk 0:02:59]} 2. exd5 {[%clk 0:02:59]}  Qxd5 {[%clk 0:02:59]} 3. Nc3 {[%clk 0:02:59]}  Qd6 {[%clk 0:03:00]} 4. d4 {[%clk 0:02:55]}  c6 {[%clk 0:03:00]} 5. Be2 {[%clk 0:02:49]}  Nf6 {[%clk 0:02:59]} 6. Be3 {[%clk 0:02:49]}  Bf5 {[%clk 0:02:58]} 7. Nf3 {[%clk 0:02:48]}  e6 {[%clk 0:02:59]} 8. h3 {[%clk 0:02:48]}  h6 {[%clk 0:02:59]} 9. O-O {[%clk 0:02:47]}  Qc7 {[%clk 0:02:47]} 10. Re1 {[%clk 0:02:36]}  Bd6 {[%clk 0:02:41]} 11. Qd2 {[%clk 0:02:27]}  Nbd7 {[%clk 0:02:39]} 12. Rad1 {[%clk 0:02:26]}  Nb6 {[%clk 0:02:32]} 13. b3 {[%clk 0:02:23]}  Bb4 {[%clk 0:02:23]} 14. Nb5 {[%clk 0:02:03]}  Qe7 {[%clk 0:01:46]} 15. c3 {[%clk 0:01:51]}  Ne4 {[%clk 0:01:45]} 16. Qb2 {[%clk 0:01:45]}  cxb5 {[%clk 0:01:34]} 17. Bxb5+ {[%clk 0:01:43]}  Kf8 {[%clk 0:01:30]} 18. cxb4 {[%clk 0:01:41]}  Nd5 {[%clk 0:01:20]} 19. Bd3 {[%clk 0:01:29]}  g5 {[%clk 0:01:19]} 20. Ne5 {[%clk 0:01:21]}  Nec3 {[%clk 0:01:03]} 21. Rd2 {[%clk 0:01:14]}  Bxd3 {[%clk 0:00:55]} 22. Rxd3 {[%clk 0:01:13]}  Ne4 {[%clk 0:00:47]} 23. Qe2 {[%clk 0:01:12]}  Nxb4 {[%clk 0:00:42]} 24. Qf3 {[%clk 0:01:05]}  Nxd3 {[%clk 0:00:41]} 25. Ng6+ {[%clk 0:01:04]}  Ke8 {[%clk 0:00:40]} 26. Nxe7 {[%clk 0:01:04]}  Nxe1 {[%clk 0:00:40]} 27. Qxe4 {[%clk 0:01:04]}  Kxe7 {[%clk 0:00:37]} 28. Qb1 {[%clk 0:01:04]}  Nxg2 {[%clk 0:00:31]} 29. Kxg2 {[%clk 0:01:03]}  Rac8 {[%clk 0:00:30]} 30. Qe4 {[%clk 0:01:03]}  Rhd8 {[%clk 0:00:27]} 31. Qxb7+ {[%clk 0:01:02]}  Kf8 {[%clk 0:00:27]} 32. Qxa7 {[%clk 0:01:02]}  Rc2 {[%clk 0:00:26]} 33. a4 {[%clk 0:00:58]}  Rdc8 {[%clk 0:00:26]} 34. a5 {[%clk 0:00:58]}  R8c3 {[%clk 0:00:27]} 35. Qb8+ {[%clk 0:00:55]}  Kg7 {[%clk 0:00:27]} 36. Qe5+ {[%clk 0:00:55]}  Kg8 {[%clk 0:00:27]} 37. a6 {[%clk 0:00:55]}  Rxb3 {[%clk 0:00:27]} 38. a7 {[%clk 0:00:55]}  Ra2 {[%clk 0:00:27]} 39. Qb8+ {[%clk 0:00:54]}  Rxb8 {[%clk 0:00:24]} 40. axb8=Q+ {[%clk 0:00:55]} 1-0


[Site "https://www.chess.com"]

[Event "Titled Tuesday Blitz July 18 Late 2023"]
[White "Redzisz, Michal"]
[Black "Vanek, Tomas"]
[WhiteFideId "21816107"]
[BlackFideId "313459"]
[WhiteElo "2519"]
[BlackElo "2157"]
[Result "1-0"]
[Round "1"]
[TimeControl "180+2"]
[Date "2023.07.18"]
[WhiteClock "0:00:29"]
[BlackClock "0:00:00"]
[Board "182"]

1. e4 {[%clk 0:03:00]}  c5 {[%clk 0:02:58]} 2. Nf3 {[%clk 0:03:00]}  Nc6 {[%clk 0:02:58]} 3. Bb5 {[%clk 0:02:59]}  Nf6 {[%clk 0:02:47]} 4. e5 {[%clk 0:02:58]}  Nd5 {[%clk 0:02:47]} 5. Nc3 {[%clk 0:02:49]}  Nc7 {[%clk 0:02:46]} 6. Bxc6 {[%clk 0:02:49]}  bxc6 {[%clk 0:02:39]} 7. Ne4 {[%clk 0:02:38]}  Ne6 {[%clk 0:02:38]} 8. O-O {[%clk 0:02:23]}  h6 {[%clk 0:02:31]} 9. d4 {[%clk 0:02:07]}  cxd4 {[%clk 0:02:15]} 10. Nxd4 {[%clk 0:02:08]}  Nxd4 {[%clk 0:02:13]} 11. Qxd4 {[%clk 0:02:09]}  Qb6 {[%clk 0:02:03]} 12. Qc3 {[%clk 0:02:00]}  Ba6 {[%clk 0:01:59]} 13. Be3 {[%clk 0:01:47]}  Qc7 {[%clk 0:01:50]} 14. Rfe1 {[%clk 0:01:42]}  e6 {[%clk 0:01:17]} 15. Bc5 {[%clk 0:01:40]}  Rb8 {[%clk 0:00:33]} 16. Nd6+ {[%clk 0:01:19]}  Bxd6 {[%clk 0:00:29]} 17. Bxd6 {[%clk 0:01:20]}  Qb7 {[%clk 0:00:29]} 18. Bxb8 {[%clk 0:01:16]}  Qxb8 {[%clk 0:00:29]} 19. Qa3 {[%clk 0:01:16]}  Qb5 {[%clk 0:00:23]} 20. Rad1 {[%clk 0:01:14]}  c5 {[%clk 0:00:20]} 21. Re3 {[%clk 0:00:59]}  O-O {[%clk 0:00:19]} 22. Rb3 {[%clk 0:00:55]}  Qe2 {[%clk 0:00:19]} 23. Ra1 {[%clk 0:00:54]}  Bc4 {[%clk 0:00:16]} 24. Re3 {[%clk 0:00:54]}  Qxc2 {[%clk 0:00:16]} 25. Qc3 {[%clk 0:00:50]}  Qxc3 {[%clk 0:00:12]} 26. Rxc3 {[%clk 0:00:51]}  Bd5 {[%clk 0:00:11]} 27. Rxc5 {[%clk 0:00:51]}  Rb8 {[%clk 0:00:10]} 28. b3 {[%clk 0:00:52]}  Bc6 {[%clk 0:00:10]} 29. Rac1 {[%clk 0:00:51]}  Kf8 {[%clk 0:00:09]} 30. Ra5 {[%clk 0:00:51]}  Rb7 {[%clk 0:00:09]} 31. Rc4 {[%clk 0:00:51]}  Ke7 {[%clk 0:00:09]} 32. f3 {[%clk 0:00:48]}  f6 {[%clk 0:00:09]} 33. exf6+ {[%clk 0:00:46]}  Kxf6 {[%clk 0:00:09]} 34. Kf2 {[%clk 0:00:45]}  Bd5 {[%clk 0:00:09]} 35. Rc8 {[%clk 0:00:44]}  Bc6 {[%clk 0:00:07]} 36. Ra8 {[%clk 0:00:43]}  Rxb3 {[%clk 0:00:03]} 37. axb3 {[%clk 0:00:42]}  Bxa8 {[%clk 0:00:03]} 38. Rxa7 {[%clk 0:00:43]}  Bc6 {[%clk 0:00:03]} 39. Ke3 {[%clk 0:00:39]}  Ke5 {[%clk 0:00:04]} 40. Ra1 {[%clk 0:00:35]}  Kd5 {[%clk 0:00:04]} 41. Rc1 {[%clk 0:00:34]}  Kd6 {[%clk 0:00:03]} 42. Kf4 {[%clk 0:00:33]}  g5+ {[%clk 0:00:03]} 43. Kg4 {[%clk 0:00:33]}  Ke5 {[%clk 0:00:03]} 44. Kh5 {[%clk 0:00:32]}  Kd4 {[%clk 0:00:03]} 45. Kxh6 {[%clk 0:00:31]}  Ke3 {[%clk 0:00:03]} 46. Kxg5 {[%clk 0:00:32]}  Kf2 {[%clk 0:00:04]} 47. Rc2+ {[%clk 0:00:32]}  Kg1 {[%clk 0:00:03]} 48. h4 {[%clk 0:00:33]}  d5 {[%clk 0:00:02]} 49. h5 {[%clk 0:00:33]}  d4 {[%clk 0:00:00]} 50. Rxc6 {[%clk 0:00:29]} 1-0


[Site "https://www.chess.com"]

[Event "Titled Tuesday Blitz July 18 Late 2023"]
[White "Mangialardo, Tiago Carvalho"]
[Black "Leenhouts, Koen"]
[WhiteFideId "2130718"]
[BlackFideId "1008439"]
[WhiteElo "2143"]
[BlackElo "2519"]
[Result "0-1"]
[Round "1"]
[TimeControl "180+2"]
[Date "2023.07.18"]
[WhiteClock "0:00:40"]
[BlackClock "0:00:57"]
[Board "183"]

1. e4 {[%clk 0:03:00]}  e6 {[%clk 0:02:57]} 2. d4 {[%clk 0:02:59]}  d5 {[%clk 0:02:57]} 3. exd5 {[%clk 0:03:00]}  exd5 {[%clk 0:02:57]} 4. c4 {[%clk 0:03:00]}  Nf6 {[%clk 0:02:55]} 5. Nc3 {[%clk 0:03:00]}  Bb4 {[%clk 0:02:43]} 6. Nf3 {[%clk 0:02:59]}  O-O {[%clk 0:02:42]} 7. Be2 {[%clk 0:02:58]}  dxc4 {[%clk 0:02:40]} 8. Bxc4 {[%clk 0:02:59]}  Re8+ {[%clk 0:02:28]} 9. Be3 {[%clk 0:02:59]}  Be6 {[%clk 0:02:24]} 10. Bd3 {[%clk 0:02:35]}  Nbd7 {[%clk 0:01:59]} 11. O-O {[%clk 0:02:19]}  Bg4 {[%clk 0:01:58]} 12. Bg5 {[%clk 0:02:12]}  h6 {[%clk 0:01:56]} 13. Bh4 {[%clk 0:02:12]}  Bd6 {[%clk 0:01:45]} 14. Ne4 {[%clk 0:02:02]}  Be7 {[%clk 0:01:38]} 15. Nxf6+ {[%clk 0:01:49]}  Bxf6 {[%clk 0:01:37]} 16. Bc2 {[%clk 0:01:40]}  Bxh4 {[%clk 0:01:29]} 17. Qd3 {[%clk 0:01:39]}  Nf8 {[%clk 0:01:23]} 18. Ne5 {[%clk 0:01:36]}  Be6 {[%clk 0:01:13]} 19. f4 {[%clk 0:01:34]}  Bf6 {[%clk 0:01:13]} 20. f5 {[%clk 0:01:34]}  Bxe5 {[%clk 0:01:13]} 21. fxe6 {[%clk 0:01:34]}  Qxd4+ {[%clk 0:01:10]} 22. Kh1 {[%clk 0:01:30]}  Rxe6 {[%clk 0:01:08]} 23. Qh3 {[%clk 0:00:59]}  Rf6 {[%clk 0:01:01]} 24. Rfd1 {[%clk 0:00:47]}  Qxb2 {[%clk 0:00:59]} 25. Rab1 {[%clk 0:00:40]}  Qxc2 {[%clk 0:00:57]} 0-1


[Site "https://www.chess.com"]

[Event "Titled Tuesday Blitz July 18 Late 2023"]
[White "Capp, Stephen"]
[Black "Garakov, Mikhael"]
[WhiteFideId "2027089"]
[BlackFideId "4169034"]
[WhiteElo "2135"]
[BlackElo "2516"]
[Result "0-1"]
[Round "1"]
[TimeControl "180+2"]
[Date "2023.07.18"]
[WhiteClock "0:00:00"]
[BlackClock "0:00:11"]
[Board "185"]

1. e4 {[%clk 0:02:58]}  c5 {[%clk 0:02:59]} 2. Nc3 {[%clk 0:02:58]}  a6 {[%clk 0:02:59]} 3. a4 {[%clk 0:02:56]}  Nc6 {[%clk 0:02:59]} 4. f4 {[%clk 0:02:56]}  g6 {[%clk 0:02:59]} 5. Bc4 {[%clk 0:02:54]}  Bg7 {[%clk 0:02:59]} 6. d3 {[%clk 0:02:53]}  e6 {[%clk 0:02:59]} 7. Nf3 {[%clk 0:02:53]}  Nge7 {[%clk 0:02:59]} 8. Bb3 {[%clk 0:02:53]}  d5 {[%clk 0:02:56]} 9. O-O {[%clk 0:02:49]}  O-O {[%clk 0:02:41]} 10. e5 {[%clk 0:02:47]}  Rb8 {[%clk 0:02:39]} 11. Ne2 {[%clk 0:02:46]}  b5 {[%clk 0:02:31]} 12. axb5 {[%clk 0:02:46]}  axb5 {[%clk 0:02:32]} 13. c3 {[%clk 0:02:46]}  d4 {[%clk 0:02:24]} 14. cxd4 {[%clk 0:02:40]}  Nxd4 {[%clk 0:02:19]} 15. Nexd4 {[%clk 0:02:38]}  cxd4 {[%clk 0:02:20]} 16. Bd2 {[%clk 0:02:36]}  Bb7 {[%clk 0:02:17]} 17. Qe2 {[%clk 0:02:29]}  Qd7 {[%clk 0:02:12]} 18. Bb4 {[%clk 0:02:24]}  Rfd8 {[%clk 0:02:12]} 19. Bd6 {[%clk 0:01:58]}  Ra8 {[%clk 0:02:02]} 20. Rac1 {[%clk 0:01:34]}  Rac8 {[%clk 0:01:02]} 21. Nxd4 {[%clk 0:01:27]}  Nd5 {[%clk 0:00:58]} 22. Rxc8 {[%clk 0:01:04]}  Rxc8 {[%clk 0:00:58]} 23. Bxd5 {[%clk 0:00:50]}  Bxd5 {[%clk 0:00:58]} 24. b4 {[%clk 0:00:44]}  Bf8 {[%clk 0:00:58]} 25. Bxf8 {[%clk 0:00:37]}  Kxf8 {[%clk 0:00:58]} 26. f5 {[%clk 0:00:31]}  exf5 {[%clk 0:00:55]} 27. Qe3 {[%clk 0:00:28]}  Kg8 {[%clk 0:00:46]} 28. Rc1 {[%clk 0:00:24]}  Rxc1+ {[%clk 0:00:44]} 29. Qxc1 {[%clk 0:00:24]}  Bxg2 {[%clk 0:00:41]} 30. Qc5 {[%clk 0:00:19]}  Ba8 {[%clk 0:00:27]} 31. e6 {[%clk 0:00:19]}  fxe6 {[%clk 0:00:23]} 32. Qe5 {[%clk 0:00:18]}  Bd5 {[%clk 0:00:20]} 33. Qb8+ {[%clk 0:00:16]}  Kg7 {[%clk 0:00:18]} 34. Qe5+ {[%clk 0:00:15]}  Kg8 {[%clk 0:00:19]} 35. Qb8+ {[%clk 0:00:15]}  Kf7 {[%clk 0:00:19]} 36. Qe5 {[%clk 0:00:13]}  Qe7 {[%clk 0:00:17]} 37. Ne2 {[%clk 0:00:11]}  Qf6 {[%clk 0:00:16]} 38. Qc7+ {[%clk 0:00:09]}  Qe7 {[%clk 0:00:17]} 39. Qe5 {[%clk 0:00:07]}  Qh4 {[%clk 0:00:12]} 40. Nf4 {[%clk 0:00:06]}  Qg4+ {[%clk 0:00:11]} 41. Kf2 {[%clk 0:00:05]}  Qf3+ {[%clk 0:00:11]} 42. Ke1 {[%clk 0:00:05]}  Qh1+ {[%clk 0:00:12]} 43. Kd2 {[%clk 0:00:05]}  Qxh2+ {[%clk 0:00:12]} 44. Kc3 {[%clk 0:00:05]}  g5 {[%clk 0:00:12]} 45. Qc7+ {[%clk 0:00:05]}  Kf6 {[%clk 0:00:11]} 46. Nxd5+ {[%clk 0:00:03]}  exd5 {[%clk 0:00:11]} 47. Qxh2 {[%clk 0:00:03]}  f4 {[%clk 0:00:10]} 48. Qxh7 {[%clk 0:00:00]}  Ke5 {[%clk 0:00:11]} 0-1


[Site "https://www.chess.com"]

[Event "Titled Tuesday Blitz July 18 Late 2023"]
[White "Balague Camps, Marc"]
[Black "Tqebuchava, Zurab"]
[WhiteFideId "2297914"]
[BlackFideId "13601113"]
[WhiteElo "2516"]
[BlackElo "2110"]
[Result "1-0"]
[Round "1"]
[TimeControl "180+2"]
[Date "2023.07.18"]
[WhiteClock "0:01:42"]
[BlackClock "0:00:00"]
[Board "186"]

1. d4 {[%clk 0:02:58]}  d6 {[%clk 0:02:59]} 2. c4 {[%clk 0:02:57]}  Nf6 {[%clk 0:02:55]} 3. Nc3 {[%clk 0:02:57]}  Nbd7 {[%clk 0:02:55]} 4. e4 {[%clk 0:02:57]}  e5 {[%clk 0:02:51]} 5. d5 {[%clk 0:02:55]}  g6 {[%clk 0:02:49]} 6. Bd3 {[%clk 0:02:55]}  Bg7 {[%clk 0:02:48]} 7. Nf3 {[%clk 0:02:52]}  Nc5 {[%clk 0:02:42]} 8. Bc2 {[%clk 0:02:52]}  a5 {[%clk 0:02:41]} 9. O-O {[%clk 0:02:52]}  O-O {[%clk 0:02:40]} 10. h3 {[%clk 0:02:53]}  Nh5 {[%clk 0:02:33]} 11. a3 {[%clk 0:02:52]}  Nf4 {[%clk 0:02:26]} 12. Rb1 {[%clk 0:02:52]}  f5 {[%clk 0:02:08]} 13. b4 {[%clk 0:02:51]}  axb4 {[%clk 0:02:06]} 14. axb4 {[%clk 0:02:52]}  Nxe4 {[%clk 0:02:05]} 15. Nxe4 {[%clk 0:02:53]}  fxe4 {[%clk 0:02:03]} 16. Bxe4 {[%clk 0:02:53]}  Bf5 {[%clk 0:01:56]} 17. Bxf5 {[%clk 0:02:53]}  Rxf5 {[%clk 0:01:53]} 18. Bxf4 {[%clk 0:02:53]}  Rxf4 {[%clk 0:01:45]} 19. c5 {[%clk 0:02:54]}  Qf6 {[%clk 0:01:36]} 20. Nh2 {[%clk 0:02:40]}  Rd4 {[%clk 0:01:29]} 21. Qb3 {[%clk 0:02:39]}  Rf8 {[%clk 0:01:18]} 22. cxd6 {[%clk 0:02:34]}  cxd6 {[%clk 0:01:17]} 23. Rbc1 {[%clk 0:02:27]}  Rd2 {[%clk 0:01:11]} 24. Ng4 {[%clk 0:02:27]}  Qf4 {[%clk 0:01:03]} 25. Rc4 {[%clk 0:02:23]}  Qf7 {[%clk 0:00:54]} 26. Qc3 {[%clk 0:01:58]}  Rxd5 {[%clk 0:00:32]} 27. Rc7 {[%clk 0:01:57]}  Qe6 {[%clk 0:00:32]} 28. Rxb7 {[%clk 0:01:55]}  h5 {[%clk 0:00:31]} 29. Ne3 {[%clk 0:01:55]}  Rd4 {[%clk 0:00:28]} 30. b5 {[%clk 0:01:45]}  Rf7 {[%clk 0:00:24]} 31. Rxf7 {[%clk 0:01:43]}  Qxf7 {[%clk 0:00:23]} 32. b6 {[%clk 0:01:43]}  Qb7 {[%clk 0:00:20]} 33. Qc7 {[%clk 0:01:43]}  Qe4 {[%clk 0:00:00]} 34. b7 {[%clk 0:01:42]} 1-0


[Site "https://www.chess.com"]